Cogmind - Beta 13 @@@ ROGUE MODE // 2024.05.02 @ 17:16:31 Player: Mylar Result: Destroyed by D-53 Grenadier with Mini Grenade Launcher Performance ------------- Evolutions (0) 0 Regions Visited (4) 800 Robots Destroyed (24) 120 Value Destroyed (434) 434 Prototype IDs (23) 460 Alien Tech Used (0) 0 Bonus (314) 314 TOTAL SCORE: 2128 Bonus ------- Follower Combat Kills 14 Aligned with FarCom 300 Cogmind --------- Core Integrity 0/250 Matter 180/300 Energy 94/100 System Corruption 0% Temperature Cool (4) Movement Core (50) Location -9/Mines Parts ------- > --- POWER (1) -------- (None) > --- PROPULSION (2) --- (None) > --- UTILITY (2) ------ Signal Interpreter ECM Suite > --- WEAPON (2) ------- (None) > --- INVENTORY (5) ---- 0b10 Alert Chip Hacking Suite Bore Cannon Rocket Launcher Peak State ------------ > --- POWER ------------ Light Ion Engine > --- PROPULSION ------- Flight Unit Flight Unit > --- UTILITY ---------- Sensor Array Signal Interpreter > --- WEAPON ----------- Light Assault Rifle Bore Cannon > --- INVENTORY -------- Ion Engine Flight Unit Small Storage Unit ECM Suite Hacking Suite [Rating: 11] Favorites ----------- Power Light Ion Engine Engine Light Ion Engine Propulsion Flight Unit Wheel Wheel Flight Unit Flight Unit Utility Signal Interpreter Device Seismic Detector Storage Small Storage Unit Processor Signal Interpreter Weapon Light Assault Rifle Energy Gun Medium Laser Ballistic Gun Light Assault Rifle Ballistic Cannon Bore Cannon Launcher Grenade Launcher Slashing Weapon Mining Claw Build | -11 -10 -10 -10 -9 ------- Run | Yrd Mat Min Exi Min Slots Evolved . | . . . . . Power . | . . . . . Propulsion . | . . . . . Utility . | . . . . . Weapon . | . . . . . Parts Attached 45 | 7 23 10 1 4 Power 5 | 1 2 2 . . Engine 5 | 1 2 2 . . Core . | . . . . . Reactor . | . . . . . Propulsion 9 | 2 3 2 . 2 Treads . | . . . . . Leg . | . . . . . Wheel 3 | 2 1 . . . Hover . | . . . . . Flight 6 | . 2 2 . 2 Utility 5 | 2 2 . 1 . Device 3 | 1 1 . 1 . Storage 1 | 1 . . . . Processor 1 | . 1 . . . Hackware . | . . . . . Protection . | . . . . . Artifact . | . . . . . Weapon 26 | 2 16 6 . 2 Energy Gun 4 | 2 1 1 . . Energy Cannon . | . . . . . Ballistic Gun 4 | . 2 1 . 1 Ballistic Cannon 4 | . . 3 . 1 Launcher 8 | . 7 1 . . Special Weapon . | . . . . . Impact Weapon . | . . . . . Slashing Weapon 6 | . 6 . . . Piercing Weapon . | . . . . . Special Melee Weapon . | . . . . . Unidentified Prototypes . | . . . . . Parts Lost 14 | . 5 4 . 5 Power 4 | . 2 1 . 1 Propulsion 6 | . 2 1 . 3 Utility . | . . . . . Weapon 4 | . 1 2 . 1 Highest Loss Streak 5 | . 4 4 . 5 To Critical Strikes . | . . . . . Average Slot Usage (%) 92 | . 95 96 85 82 Engine 13 | . 13 12 14 12 Wheel 9 | . 21 . . . Flight 17 | . 5 27 28 28 Device 14 | . 14 14 14 14 Storage 5 | . 11 . . . Processor 7 | . . 14 14 14 Energy Gun 1 | . 3 . . . Ballistic Gun 8 | . 3 12 14 10 Ballistic Cannon 1 | . . 4 . 2 Launcher 4 | . 3 8 . . Slashing Weapon 7 | . 16 . . . Naked Turns . | . . . . . Heaviest Build 16 | 14 16 14 14 14 Greatest Support 20 | 20 20 8 8 8 Greatest Overweight (x) 1 | . 1 1 1 1 Average Overweight (x) . | . . . . . Largest Inventory Capacity 8 | 8 8 5 5 5 Average Capacity 6 | 7 7 5 5 5 Most Carried 8 | 1 8 5 5 5 Average Carried 5 | . 6 4 4 4 Final Capacity 8 | 8 5 5 5 5 Final Carried 5 | 1 5 5 5 4 Class Distribution -------------------- 56% | Mutant 43% | Scavenger-Mutant Dominant Class ---------------- Mutant | -10/Materials Mutant | -10/Mines Scavenger-Mutant | -10/Exiles Scavenger-Mutant | -9/Mines Resources | -11 -10 -10 -10 -9 ----------- Run | Yrd Mat Min Exi Min Matter Collected 703 | 261 321 84 . 37 Remotely . | . . . . . Salvage Created 633 | 27 535 71 . . Parts 36 | 3 31 2 . . Haulers Intercepted 2 | . 2 . . . Recyclers Shooed 1 | . 1 . . . Parts Field Recycled . | . . . . . Retrieved Matter . | . . . . . Parts Self-Destructed . | . . . . . Prevented . | . . . . . Kills | -11 -10 -10 -10 -9 ------- Run | Yrd Mat Min Exi Min Combat Hostiles Destroyed 14 | . 12 2 . . Melee 4 | . 4 . . . Cannons 1 | . . 1 . . AOE 9 | . 8 1 . . Classes Destroyed 10 | 1 8 1 . . Worker 1 | . 1 . . . Builder 1 | . 1 . . . Tunneler 1 | 1 . . . . Hauler 2 | . 2 . . . Recycler 3 | . 2 1 . . Operator 1 | . 1 . . . Watcher 1 | . 1 . . . Swarmer 6 | . 6 . . . Grunt 6 | . 6 . . . Sentry 2 | . . 2 . . Best Kill Streak 4 | 1 4 1 . . Combat Bots Only 3 | . 3 1 . . Max Kills in Single Turn 3 | 1 3 1 . . Gunslinging . | . . . . . Exploded 3 | . 3 1 . . Melee 1 | . 1 . . . Uniques/NPCs Destroyed . | . . . . . Combat | -11 -10 -10 -10 -9 -------- Run | Yrd Mat Min Exi Min Hostile Shots Fired 99 | . 53 30 . 16 Missed 30 | . 14 12 . 4 Damage Taken 978 | . 390 264 . 324 Core 264 | . 97 29 . 138 Absorbed by Shields . | . . . . . Core Remaining (%) 100 | 100 . . . . Volleys Fired 45 | 1 17 23 . 4 Largest 2 | 2 2 1 . 1 Hottest 90 | 90 70 57 . 57 Shots Fired 53 | 2 24 23 . 4 Gun 29 | 2 15 12 . . Cannon 9 | . . 5 . 4 Launcher 15 | . 9 6 . . Special . | . . . . . Kinetic 29 | . 8 17 . 4 Thermal 9 | 2 7 . . . Explosive 15 | . 9 6 . . Electromagnetic . | . . . . . Robot Hit Streak 6 | 2 6 6 . 2 Robot Miss Streak 3 | . 3 3 . 2 Penetration Max . | . . . . . Secondary Targets . | . . . . . Shots Hit Robots 50 | 2 30 16 . 2 Core Hits 38 | 1 29 8 . . Critical Kills 1 | . . 1 . . Critical Parts Destroyed 1 | . . 1 . . Critical Strikes 3 | . . 3 . . Destroy 3 | . . 3 . . Melee Attacks 27 | . 27 . . . Impact . | . . . . . Slashing 27 | . 27 . . . Piercing . | . . . . . Sneak Attacks 6 | . 6 . . . Combat Hostiles . | . . . . . Follow-up Attacks 1 | . 1 . . . Damage Inflicted 1470 | 22 1134 314 . . Guns 149 | 22 70 57 . . Cannons 86 | . . 86 . . Explosions 761 | . 590 171 . . Melee 474 | . 474 . . . Ramming . | . . . . . Kinetic 189 | . 46 143 . . Thermal 46 | 22 24 . . . Explosive 761 | . 590 171 . . Electromagnetic . | . . . . . Impact . | . . . . . Slashing 474 | . 474 . . . Piercing . | . . . . . Highest Corruption . | . . . . . Average Corruption . | . . . . . Corruption Purged . | . . . . . Corruption Blocked . | . . . . . Overload Shots . | . . . . . Overflow Damage 37 | . 37 . . . Projectiles . | . . . . . Explosions . | . . . . . Melee 37 | . 37 . . . Knockbacks . | . . . . . Impact . | . . . . . Kinetic . | . . . . . Secondary . | . . . . . Self-Inflicted Damage . | . . . . . Shots . | . . . . . Rammed . | . . . . . Targets Rammed . | . . . . . Kicked . | . . . . . Crushed . | . . . . . Highest Temperature 60 | 30 58 41 . 60 Average Temperature 19 | 17 21 14 . 26 Received Heat Transfer 159 | . 66 81 . 12 Siege Activations . | . . . . . Robots Corrupted . | . . . . . Combat Hostiles . | . . . . . Parts Fried . | . . . . . Impact Corruptions . | . . . . . Robots Melted . | . . . . . Combat Hostiles . | . . . . . Parts Melted 1 | 1 . . . . Heat Transferred 136 | 62 74 . . . Parts Sabotaged . | . . . . . Parts Stolen . | . . . . . Parts Stripped . | . . . . . Power Chain Reactions . | . . . . . Alert | -11 -10 -10 -10 -9 ------- Run | Yrd Mat Min Exi Min Peak Influence 326 | 5 326 175 . 35 Initial 53 | . 3 53 . . Average 94 | 1 111 99 . 15 Maximum Alert Level 1 | . 1 . . . Low Security (%) 88 | 100 79 100 . 100 Level 1 11 | . 20 . . . Level 2 . | . . . . . Level 3 . | . . . . . Level 4 . | . . . . . Level 5 . | . . . . . High Security . | . . . . . Max Security . | . . . . . Squads Dispatched 4 | . 4 . . . Investigation 4 | . 4 . . . Extermination . | . . . . . Reinforcement . | . . . . . Assault . | . . . . . Garrison . | . . . . . Intercept . | . . . . . Searches Triggered . | . . . . . Construction Impeded . | . . . . . Haulers Reinforced . | . . . . . Active Scanning Responses . | . . . . . Cargo Convoy Interrupts . | . . . . . Stealth | -11 -10 -10 -10 -9 --------- Run | Yrd Mat Min Exi Min Distress Signals . | . . . . . Communications Jammed . | . . . . . Distress Signals . | . . . . . Times Spotted 35 | . 19 2 . 14 Peak Tracking Total 6 | . 4 2 . 6 Tactical Retreats 5 | . 2 . . 3 Traps | -11 -10 -10 -10 -9 ------- Run | Yrd Mat Min Exi Min Traps Triggered 1 | . 1 . . . Indirectly . | . . . . . Trap Hack Attempts . | . . . . . Triggered . | . . . . . Disarmed . | . . . . . Reprogrammed . | . . . . . Reused . | . . . . . Traps Extracted . | . . . . . Installed . | . . . . . Triggered . | . . . . . Machines | -11 -10 -10 -10 -9 ---------- Run | Yrd Mat Min Exi Min Machines Disabled 1 | . . 1 . . Max in Single Turn 1 | . . 1 . . Machines Repaired . | . . . . . Machines Dismantled . | . . . . . Machines Sabotaged . | . . . . . Overloaded Fab Kills . | . . . . . Hacking | -11 -10 -10 -10 -9 --------- Run | Yrd Mat Min Exi Min Machines Accessed 14 | . 8 1 5 . Terminals 8 | . 7 1 . . Fabricators . | . . . . . Repair Stations . | . . . . . Recycling Units 1 | . 1 . . . Scanalyzers . | . . . . . Garrison Access . | . . . . . Total Hacks 84 | . 31 3 50 . Successful 67 | . 16 1 50 . Failed 16 | . 14 2 . . Catastrophic 3 | . 3 . . . Database Lockouts 1 | . 1 . . . Manual 30 | . 21 3 6 . Terminals 29 | . 26 3 . . Fabricators . | . . . . . Repair Stations . | . . . . . Recycling Units 5 | . 5 . . . Scanalyzers . | . . . . . Garrison Access . | . . . . . Terminal Hacks 59 | . 9 . 50 . Record 50 | . 1 . 49 . Part Schematic 1 | . 1 . . . Robot Analysis 1 | . 1 . . . Branch Access Points 1 | . 1 . . . Alert Level 1 | . 1 . . . Unreport Threat 1 | . 1 . . . Locate Traps 1 | . 1 . . . Zone Layout 2 | . 2 . . . Derelict Proto ID Bank 1 | . . . 1 . Fabricator Hacks . | . . . . . Repair Station Hacks . | . . . . . Recycling Unit Hacks 1 | . 1 . . . Report Inventory 1 | . 1 . . . Scanalyzer . | . . . . . Garrison Access Hacks . | . . . . . Unauthorized Hacks 7 | . 6 1 . . Terminals 7 | . 6 1 . . Assimilate 1 | . 1 . . . Botnet 6 | . 5 1 . . Fabricators . | . . . . . Repair Stations . | . . . . . Recycling Units . | . . . . . Scanalyzers . | . . . . . Garrison Access . | . . . . . Data Cores Recovered . | . . . . . Used . | . . . . . Hacking Detections 9 | . 8 1 . . Full Trace Events 6 | . 6 . . . Feedback Events . | . . . . . Feedback Blocked . | . . . . . Robot Schematics Acquired . | . . . . . Robots Built . | . . . . . Authchips . | . . . . . Time . | . . . . . Total Robot Build Rating . | . . . . . Part Schematics Acquired 1 | . 1 . . . Parts Built . | . . . . . Authchips . | . . . . . Time . | . . . . . Total Part Build Rating . | . . . . . Parts Repaired . | . . . . . Time . | . . . . . Parts Recycled . | . . . . . Recycled Matter . | . . . . . Retrieved Matter . | . . . . . Retrieved Components . | . . . . . Parts Scanalyzed . | . . . . . Part Schematics Acquired . | . . . . . Parts Damaged . | . . . . . Bothacking | -11 -10 -10 -10 -9 ------------ Run | Yrd Mat Min Exi Min Used RIF Installer . | . . . . . Robots Hacked . | . . . . . Non-combat . | . . . . . Combat . | . . . . . Robot Hacks Applied . | . . . . . Relay Couplers Released . | . . . . . Fabnet Peak Effective % . | . . . . . Robots Rewired . | . . . . . Allies Hacked . | . . . . . Hacks Repelled . | . . . . . Allies | -11 -10 -10 -10 -9 -------- Run | Yrd Mat Min Exi Min Total Allies 1 | . . 1 . . Largest Group 1 | . . 1 1 . Highest-Rated Group 31 | . . 31 31 . Highest-Rated Ally 31 | . . 31 31 . Total Orders . | . . . . . Ally Attacks 9 | . . 9 . . Total Damage 126 | . . 126 . . Kills 3 | . . 3 . . Allies Corrupted . | . . . . . Allies Melted . | . . . . . Intel | -11 -10 -10 -10 -9 ------- Run | Yrd Mat Min Exi Min Robot Analysis Total 1 | . 1 . . . Derelict Logs Recovered 2 | . . 2 . . Drone Launches . | . . . . . Drone Recoveries . | . . . . . Exploration | -11 -10 -10 -10 -9 ------------- Run | Yrd Mat Min Exi Min Turns Passed 1609 | 55 705 408 335 106 Spaces Moved 2593 | 51 765 695 863 219 Core 3 | 3 . . . . Treads . | . . . . . Legs . | . . . . . Wheels 573 | 48 525 . . . Hover . | . . . . . Flight 2017 | . 240 695 863 219 Fastest Speed 37 | 50 37 37 37 37 Average Speed 49 | 78 66 44 38 38 Slowest Speed 117 | 80 95 117 117 117 Overloaded Moves . | . . . . . Propulsion Burnouts . | . . . . . Robots Hopped 4 | . . 2 . 2 Cave-ins Triggered . | . . . . . Exploration Rate (%) 64 | 3 93 99 94 33 Regions Visited 4 Branch Regions 3 Pre-discovered Areas 2 | . . 1 1 . Known Exits Taken 3 | . 1 1 1 . Unknown Exits Taken 1 | 1 . . . . Scrap Searched 2 | . . 1 . 1 Spaces Dug . | . . . . . Terrain Destroyed 81 | . 48 26 . 7 Melee . | . . . . . Projectile 11 | . . 4 . 7 AOE 70 | . 48 22 . . Terrain Rammed . | . . . . . Walls Destroyed . | . . . . . Machines Disabled . | . . . . . Actions | -11 -10 -10 -10 -9 --------- Run | Yrd Mat Min Exi Min Total 2814 | 60 884 770 867 233 Wait 55 | . 15 34 . 6 Move 2581 | 50 764 690 862 215 Hop 4 | . . 2 . 2 Pick Up 30 | 2 22 4 1 1 Fast Attach 12 | 6 2 4 . . Attach 15 | 1 8 5 . 1 Detach 5 | . 2 2 1 . Swap 18 | . 13 1 1 3 Drop 23 | . 15 5 2 1 Fire 45 | 1 17 23 . 4 Melee 26 | . 26 . . . Ram . | . . . . . Kick . | . . . . . Crush . | . . . . . Escape Stasis . | . . . . . Rewire . | . . . . . Trap . | . . . . . Miscellaneous . | . . . . . Route ------- -11/Scrapyard -10/Materials (discovered 4 exits: *Mat x2 / *Min x2) -10/Mines (discovered 3 exits: *Mat x2 / *Exi) -10/Exiles (discovered 2 exits: *Min x2) -9/Mines History --------- Turn | Location | Event 17 | -11/Scrapyard | Discovered new exit (range 16) 56 | -11/Scrapyard | Entered Materials 228 | -10/Materials | Discovered new exit (range 4) 314 | -10/Materials | Build established: Mutant 412 | -10/Materials | Identified exit to Mines 634 | -10/Materials | Lost 4 parts (1p2n1w) 699 | -10/Materials | Discovered new exit (range 17) 732 | -10/Materials | Central database locked down 761 | -10/Materials | Entered Mines 761 | -10/Mines | Discovered new exit (range 13) 766 | -10/Mines | Identified exit to Materials 788 | -10/Mines | A weapon hastily lodged in a ceiling crevice suddenly fell to the ground 925 | -10/Mines | Learned Materials emergency access door positions 931 | -10/Mines | Received a Mining Laser from a helpful Derelict 946 | -10/Mines | Deemed a non-threat by the Exiles lab entrance 946 | -10/Mines | Discovered new exit (range 5) 947 | -10/Mines | Identified exit to Exiles 980 | -10/Mines | Discovered exit to Materials (range 8) 1021 | -10/Mines | Core integrity fell below 50% 1060 | -10/Mines | Lost 4 parts (1p1n2w) 1169 | -10/Mines | Entered Exiles 1169 | -10/Exiles | Accompanied by 1 ally 1190 | -10/Exiles | Discovered new exit (range 15) 1194 | -10/Exiles | Identified exit to Mines 1202 | -10/Exiles | Met 8R-AWN 1211 | -10/Exiles | Met EX-HEX 1237 | -10/Exiles | Met EX-DEC 1248 | -10/Exiles | Visited The Gauntlet 1316 | -10/Exiles | Learned location of Zion (-6) 1328 | -10/Exiles | Met EX-BIN 1342 | -10/Exiles | Build established: Scavenger-Mutant 1342 | -10/Exiles | Aligned with FarCom system 1342 | -10/Exiles | Given EX-Vault access code 1366 | -10/Exiles | Opened EX-Vault 1372 | -10/Exiles | Found 0b10 Alert Chip 1381 | -10/Exiles | Warned to stay clear of 0b10 Research branches 1429 | -10/Exiles | Discovered exit to Mines (range 11) 1504 | -10/Exiles | Left Exiles lab with 0b10 Alert Chip 1504 | -10/Exiles | Entered Mines 1513 | -9/Mines | Received a Rocket Launcher from a helpful Derelict 1525 | -9/Mines | Assembled infested the area 1530 | -9/Mines | Assisted by a Guerilla fighting off Assembled 1607 | -9/Mines | Core integrity fell below 20% 1610 | -9/Mines | Destroyed by D-53 Grenadier with Mini Grenade Launcher Last Messages --------------- come on!" 01536_ 34-5ZC(h): "I'll hold them off! Go on ahead or try to find another way!" 01537_ HV Slug penetrates Wall. 01541_ U-05 Engineer builds a Wall. 01542_ C-30 ARC bursts open, deploying its payload. 01542_ D-53 Grenadier unfolds itself. 01542_ 34-5ZC(h) destroyed. 01543_ The unstable cave ceiling collapses. 01552_ K-01 Serf collects debris. 01557_ Dropped Flight Unit. 01558_ Acquired Rocket Launcher. 01595_ K-01 Serf collects debris. 01606_ R-06 Scavenger destroyed. 01608_ The unstable cave ceiling collapses. 01608_ Flight Unit destroyed. 01608_ Lgt. Assault Rifle destroyed. 01608_ Lgt. Ion Engine destroyed. 01610_ Flight Unit destroyed. Map ----- +----------------------------------------------------+ | ???????????# #???????????????????? | | ???????????# #### #???????????????????? | | ???????????## # ###?????????????????????????? | | ????????????### # ##???????????????????????????? | | ??????????????##### #????????????????????????????? | | ??????????????????# #????????????????????????????? | | ??????????????????# #????????????????????????????? | | ??????????????????# #????????????????????????????? | | ??????????????????# #????????????????????????????? | | ??????????????##### #????????????????????????????? | | ??????????????# #????????????????????????????? | | ??????????????# #####????????????????????????????? | | ##????????????# #????????????????????????????????? | | #????????????# #????????????????????????????????? | | ????????????# #????????????????????????????????? | | ????????????# #######??????????????????????????? | | #??????####??# #??????????????????????????? | | #??????# #### ##### #??????????????????????????? | | ####???# #?### ##?????????????????????????? | | #???# ## ### ###???????????????????????? | | ## #???## ! ##??????????????????????? | | ## #????## *%= ] #??????????????????????? | | ## #????## = d ##??????????????????????? | | ## #????# # d ######$#???????????????? | | ## #????# #???????????????? | | ## ########## @ #???????????????? | | ## #??### ## #### #####t#???????????????? | | ######## #????#g####???####?????????????????????? | | #??????# #????# ###?????????????????????????????? | | ######### ###### #?????????????????????????????? | | ## g # #?????????????????????????????? | | ## """ """ """ # #?????????????????????????????? | | """ """ """ # #?????????????????????????????? | | """ """ """ # #?????????????????????????????? | | ## # #?????????????????????????????? | | ?# """ """ """ #?????????????????????????????? | | ?# """ """ """ #?????????????????????????????? | | ?# """ """ """ ###?????????????????????????????? | | ?# #???????????????????????????????? | | ?#################???????????????????????????????? | | ?????????????????????????????????????????????????? | | ?????????????????????????????????????????????????? | | ?????????????????????????????????????????????????? | | ?????????????????????????????????????????????????? | | ?????????????????????????????????????????????????? | | ?????????????????????????????????????????????????? | | ?????????????????????????????????????????????????? | | | | | | | +----------------------------------------------------+ Best States ------------- Heat Dissipation 25 Energy Generation 10 Energy Capacity 250 Matter Stores 300 Matter Capacity 300 Sight Range 16 Robot Scan Range 14 Terrain Scan Density 10 ECM Strength 1 Evasion (%) 62 Item Schematics ----------------- Huge Storage Unit | -10/Materials | Hacked Robot Schematics ------------------ None Fabricated ------------ Nothing Alien Tech Used ----------------- None Achievements -------------- Librarian Challenges ------------ None Game ------ Seed CoreExperimentalMatter Manual? 0 Play Time 01:11:50 Cumulative 99.6 hours Start 2024.05.02 @ 13:59:01 End 2024.05.02 @ 17:16:31 Sessions 3 Manual Loads 0 Difficulty Rogue Special Mode None Game No. 16 Rogue 16 Adventurer 0 Explorer 0 Win Type - Total 0 Types 0/0/0/0/0/0/0/0/0 Lore% 17 Gallery% 17 Achievement% 16 Wizard Run 0 Options --------- Layout 1 ASCII 0 Keyboard 0 Movement Mouse Keybinds 0 Fullscreen 1 Font 24/Smallcaps Map View 50x35 Zoom Use 0% Tactical HUD 1 Map Filters NONE Filters NONE Steam 1 RUN: 25babba6-e051-4af6-9c19-0bac59f225b8